{"text_format":"1","workbook":"xlsx","n_sheets":4,"sheets":["Guidance","calendar2024","Working Hours Calculator","2024 Template"],"not_rendered":{"charts":0,"images":1,"macros":1,"external_links":1,"defined_names":12,"comments":0,"pivot_tables":0},"unopened":[],"bounds":{"document_bytes":16777216,"sheet_cells":100000,"rows_first":2000,"rows_last":500,"rows_between":2000,"halvings":0,"cell_chars":16384,"cell_head_chars":4096},"cells_cut":0,"cells_raw":0,"read":"whole","date_system":"1900"}

{"sheet":"Guidance","index":0,"n_rows":39,"n_cols":1,"rows_kept":39,"cut":false,"hidden":false,"merged":[[31,0,31,10],[29,0,29,10],[23,0,23,10],[33,0,33,10],[30,0,30,10],[32,0,32,10],[28,0,28,10],[27,0,27,10],[24,0,24,10],[25,0,25,10],[26,0,26,10],[41,0,41,10],[34,0,34,10],[36,0,36,10],[39,0,39,10],[35,0,35,10],[40,0,40,10],[37,0,37,10],[38,0,38,10],[15,0,15,10],[16,0,16,10],[19,0,19,10],[14,0,14,10],[18,0,18,10],[17,0,17,10],[22,0,22,10],[20,0,20,10],[21,0,21,10],[0,0,0,10],[10,0,10,10],[1,0,1,10],[3,0,3,10],[7,0,7,10],[2,0,2,10],[4,0,4,10],[5,0,5,10],[8,0,8,10],[9,0,9,10],[6,0,6,10],[11,0,11,10],[13,0,13,10]]}
[]
["RESOURCES:"]
[]
["The following resources can be accessed via the tabs below:"]
[]
["a)  2024 Template - Helps to plan the hours to be worked by an employee.  Will assist in ensuring that allocated hours equate to total hours to be worked during the leave year."]
[]
["b) Working Hours Calculator - Assists in calculating the total number of hours to be worked per year (excluding Annual Leave and Public Holiday)."]
[]
["The '2024 Template' and 'Working Hours Calculator' can be used to help plan an employees annualised hours working pattern.  The Annual Leave Calculator for the current year (found on Arcadia under HR Policies and Procedure/Resource Pack) will help when working out AL/PH entitlement to be set up in Bodet.  "]
[]
["GUIDANCE:"]
[]
["A copy of the spreadsheet should be taken for each employee/post."]
[]
["1. Input employee name and job title."]
[]
["2. Input contractual hours per annum (excluding annual leave and public holiday). If hours given include AL/PH  the Working Hours Calculator worksheet can be used to calculate the contractual hours per annum (excluding annual leave and public holiday). "]
[]
["3. Input the start and end dates for this year by clicking on the relevant cells (M8/M9) and using the dropdowns.  "]
["      (i) For an employee who is expected to work for the whole year these will be 01/01/2024 and 31/12/2024."]
["      (ii) For any days that are outside the start and end dates entered the cells automatically turn red."]
[]
["4. Ensure that all of the cells highlighted in red have a value of 0.00."]
[]
["5. Confirm whether the employee has greater than 5 years service by clicking on the relevant cell (M10) and using the dropdown to select \"Yes\" or \"No\"."]
[]
["6. Enter the average number of days worked per week. The standard is 5 if there is no predicted work pattern, but if a rota is being used then the total number of days to be worked divided by weeks this year that are expected to be worked (maximum 52.18) should be used. Please note this figure is fixed for the whole year."]
[]
["7. If there are hours bought forward from the previous year/spreadsheet input the total number of hours to be added.  "]
["The Annualised Hours Planner:"]
[]
["The planned number of hours to be worked each day is entered in the appropriate cells.  "]
[]
["The \"Weekly Total (Excl. AL/PH)\" column totals the hours to be worked during each week.  "]
[]
["The \"Hours Remaining (Excl. AL/PH)\" column shows the total hours remaining to be worked during this calendar year."]
["      (i) If, at the end of the calendar year, the figure in this column is negative then the hours that the employee has worked exceeded the total contracted hours by the number indicated.  These hours should be claimed as additional hours, however, if any of these hours exceed the annual overtime threshold (1931 hours pro rata) they should be claimed as overtime."]
["      (ii) If, at the end of the calendar year, the figure in this column is positive then the hours that the employee has worked is less than the total contracted hours by the number indicated.  These hours should be added to the following year's total. "]

{"sheet":"calendar2024","index":1,"n_rows":369,"n_cols":5,"rows_kept":369,"cut":false,"hidden":false,"merged":[]}
["Calendar for ",2024]
[null,"Date","Day","Number of days","Working Days (all minus weekends)"]
[null,"2024-01-01","Monday",1,1]
[null,"2024-01-02","Tuesday",2,1]
[null,"2024-01-03","Wednesday",3,1]
[null,"2024-01-04","Thursday",4,1]
[null,"2024-01-05","Friday",5,1]
[null,"2024-01-06","Saturday",6,0]
[null,"2024-01-07","Sunday",7,0]
[null,"2024-01-08","Monday",8,1]
[null,"2024-01-09","Tuesday",9,1]
[null,"2024-01-10","Wednesday",10,1]
[null,"2024-01-11","Thursday",11,1]
[null,"2024-01-12","Friday",12,1]
[null,"2024-01-13","Saturday",13,0]
[null,"2024-01-14","Sunday",14,0]
[null,"2024-01-15","Monday",15,1]
[null,"2024-01-16","Tuesday",16,1]
[null,"2024-01-17","Wednesday",17,1]
[null,"2024-01-18","Thursday",18,1]
[null,"2024-01-19","Friday",19,1]
[null,"2024-01-20","Saturday",20,0]
[null,"2024-01-21","Sunday",21,0]
[null,"2024-01-22","Monday",22,1]
[null,"2024-01-23","Tuesday",23,1]
[null,"2024-01-24","Wednesday",24,1]
[null,"2024-01-25","Thursday",25,1]
[null,"2024-01-26","Friday",26,1]
[null,"2024-01-27","Saturday",27,0]
[null,"2024-01-28","Sunday",28,0]
[null,"2024-01-29","Monday",29,1]
[null,"2024-01-30","Tuesday",30,1]
[null,"2024-01-31","Wednesday",31,1]
[null,"2024-02-01","Thursday",32,1]
[null,"2024-02-02","Friday",33,1]
[null,"2024-02-03","Saturday",34,0]
[null,"2024-02-04","Sunday",35,0]
[null,"2024-02-05","Monday",36,1]
[null,"2024-02-06","Tuesday",37,1]
[null,"2024-02-07","Wednesday",38,1]
[null,"2024-02-08","Thursday",39,1]
[null,"2024-02-09","Friday",40,1]
[null,"2024-02-10","Saturday",41,0]
[null,"2024-02-11","Sunday",42,0]
[null,"2024-02-12","Monday",43,1]
[null,"2024-02-13","Tuesday",44,1]
[null,"2024-02-14","Wednesday",45,1]
[null,"2024-02-15","Thursday",46,1]
[null,"2024-02-16","Friday",47,1]
[null,"2024-02-17","Saturday",48,0]
[null,"2024-02-18","Sunday",49,0]
[null,"2024-02-19","Monday",50,1]
[null,"2024-02-20","Tuesday",51,1]
[null,"2024-02-21","Wednesday",52,1]
[null,"2024-02-22","Thursday",53,1]
[null,"2024-02-23","Friday",54,1]
[null,"2024-02-24","Saturday",55,0]
[null,"2024-02-25","Sunday",56,0]
[null,"2024-02-26","Monday",57,1]
[null,"2024-02-27","Tuesday",58,1]
[null,"2024-02-28","Wednesday",59,1]
[null,"2024-02-29","Thursday",60,1]
[null,"2024-03-01","Friday",61,1]
[null,"2024-03-02","Saturday",62,0]
[null,"2024-03-03","Sunday",63,0]
[null,"2024-03-04","Monday",64,1]
[null,"2024-03-05","Tuesday",65,1]
[null,"2024-03-06","Wednesday",66,1]
[null,"2024-03-07","Thursday",67,1]
[null,"2024-03-08","Friday",68,1]
[null,"2024-03-09","Saturday",69,0]
[null,"2024-03-10","Sunday",70,0]
[null,"2024-03-11","Monday",71,1]
[null,"2024-03-12","Tuesday",72,1]
[null,"2024-03-13","Wednesday",73,1]
[null,"2024-03-14","Thursday",74,1]
[null,"2024-03-15","Friday",75,1]
[null,"2024-03-16","Saturday",76,0]
[null,"2024-03-17","Sunday",77,0]
[null,"2024-03-18","Monday",78,1]
[null,"2024-03-19","Tuesday",79,1]
[null,"2024-03-20","Wednesday",80,1]
[null,"2024-03-21","Thursday",81,1]
[null,"2024-03-22","Friday",82,1]
[null,"2024-03-23","Saturday",83,0]
[null,"2024-03-24","Sunday",84,0]
[null,"2024-03-25","Monday",85,1]
[null,"2024-03-26","Tuesday",86,1]
[null,"2024-03-27","Wednesday",87,1]
[null,"2024-03-28","Thursday",88,1]
[null,"2024-03-29","Friday",89,1]
[null,"2024-03-30","Saturday",90,0]
[null,"2024-03-31","Sunday",91,0]
[null,"2024-04-01","Monday",92,1]
[null,"2024-04-02","Tuesday",93,1]
[null,"2024-04-03","Wednesday",94,1]
[null,"2024-04-04","Thursday",95,1]
[null,"2024-04-05","Friday",96,1]
[null,"2024-04-06","Saturday",97,0]
[null,"2024-04-07","Sunday",98,0]
[null,"2024-04-08","Monday",99,1]
[null,"2024-04-09","Tuesday",100,1]
[null,"2024-04-10","Wednesday",101,1]
[null,"2024-04-11","Thursday",102,1]
[null,"2024-04-12","Friday",103,1]
[null,"2024-04-13","Saturday",104,0]
[null,"2024-04-14","Sunday",105,0]
[null,"2024-04-15","Monday",106,1]
[null,"2024-04-16","Tuesday",107,1]
[null,"2024-04-17","Wednesday",108,1]
[null,"2024-04-18","Thursday",109,1]
[null,"2024-04-19","Friday",110,1]
[null,"2024-04-20","Saturday",111,0]
[null,"2024-04-21","Sunday",112,0]
[null,"2024-04-22","Monday",113,1]
[null,"2024-04-23","Tuesday",114,1]
[null,"2024-04-24","Wednesday",115,1]
[null,"2024-04-25","Thursday",116,1]
[null,"2024-04-26","Friday",117,1]
[null,"2024-04-27","Saturday",118,0]
[null,"2024-04-28","Sunday",119,0]
[null,"2024-04-29","Monday",120,1]
[null,"2024-04-30","Tuesday",121,1]
[null,"2024-05-01","Wednesday",122,1]
[null,"2024-05-02","Thursday",123,1]
[null,"2024-05-03","Friday",124,1]
[null,"2024-05-04","Saturday",125,0]
[null,"2024-05-05","Sunday",126,0]
[null,"2024-05-06","Monday",127,1]
[null,"2024-05-07","Tuesday",128,1]
[null,"2024-05-08","Wednesday",129,1]
[null,"2024-05-09","Thursday",130,1]
[null,"2024-05-10","Friday",131,1]
[null,"2024-05-11","Saturday",132,0]
[null,"2024-05-12","Sunday",133,0]
[null,"2024-05-13","Monday",134,1]
[null,"2024-05-14","Tuesday",135,1]
[null,"2024-05-15","Wednesday",136,1]
[null,"2024-05-16","Thursday",137,1]
[null,"2024-05-17","Friday",138,1]
[null,"2024-05-18","Saturday",139,0]
[null,"2024-05-19","Sunday",140,0]
[null,"2024-05-20","Monday",141,1]
[null,"2024-05-21","Tuesday",142,1]
[null,"2024-05-22","Wednesday",143,1]
[null,"2024-05-23","Thursday",144,1]
[null,"2024-05-24","Friday",145,1]
[null,"2024-05-25","Saturday",146,0]
[null,"2024-05-26","Sunday",147,0]
[null,"2024-05-27","Monday",148,1]
[null,"2024-05-28","Tuesday",149,1]
[null,"2024-05-29","Wednesday",150,1]
[null,"2024-05-30","Thursday",151,1]
[null,"2024-05-31","Friday",152,1]
[null,"2024-06-01","Saturday",153,0]
[null,"2024-06-02","Sunday",154,0]
[null,"2024-06-03","Monday",155,1]
[null,"2024-06-04","Tuesday",156,1]
[null,"2024-06-05","Wednesday",157,1]
[null,"2024-06-06","Thursday",158,1]
[null,"2024-06-07","Friday",159,1]
[null,"2024-06-08","Saturday",160,0]
[null,"2024-06-09","Sunday",161,0]
[null,"2024-06-10","Monday",162,1]
[null,"2024-06-11","Tuesday",163,1]
[null,"2024-06-12","Wednesday",164,1]
[null,"2024-06-13","Thursday",165,1]
[null,"2024-06-14","Friday",166,1]
[null,"2024-06-15","Saturday",167,0]
[null,"2024-06-16","Sunday",168,0]
[null,"2024-06-17","Monday",169,1]
[null,"2024-06-18","Tuesday",170,1]
[null,"2024-06-19","Wednesday",171,1]
[null,"2024-06-20","Thursday",172,1]
[null,"2024-06-21","Friday",173,1]
[null,"2024-06-22","Saturday",174,0]
[null,"2024-06-23","Sunday",175,0]
[null,"2024-06-24","Monday",176,1]
[null,"2024-06-25","Tuesday",177,1]
[null,"2024-06-26","Wednesday",178,1]
[null,"2024-06-27","Thursday",179,1]
[null,"2024-06-28","Friday",180,1]
[null,"2024-06-29","Saturday",181,0]
[null,"2024-06-30","Sunday",182,0]
[null,"2024-07-01","Monday",183,1]
[null,"2024-07-02","Tuesday",184,1]
[null,"2024-07-03","Wednesday",185,1]
[null,"2024-07-04","Thursday",186,1]
[null,"2024-07-05","Friday",187,1]
[null,"2024-07-06","Saturday",188,0]
[null,"2024-07-07","Sunday",189,0]
[null,"2024-07-08","Monday",190,1]
[null,"2024-07-09","Tuesday",191,1]
[null,"2024-07-10","Wednesday",192,1]
[null,"2024-07-11","Thursday",193,1]
[null,"2024-07-12","Friday",194,1]
[null,"2024-07-13","Saturday",195,0]
[null,"2024-07-14","Sunday",196,0]
[null,"2024-07-15","Monday",197,1]
[null,"2024-07-16","Tuesday",198,1]
[null,"2024-07-17","Wednesday",199,1]
[null,"2024-07-18","Thursday",200,1]
[null,"2024-07-19","Friday",201,1]
[null,"2024-07-20","Saturday",202,0]
[null,"2024-07-21","Sunday",203,0]
[null,"2024-07-22","Monday",204,1]
[null,"2024-07-23","Tuesday",205,1]
[null,"2024-07-24","Wednesday",206,1]
[null,"2024-07-25","Thursday",207,1]
[null,"2024-07-26","Friday",208,1]
[null,"2024-07-27","Saturday",209,0]
[null,"2024-07-28","Sunday",210,0]
[null,"2024-07-29","Monday",211,1]
[null,"2024-07-30","Tuesday",212,1]
[null,"2024-07-31","Wednesday",213,1]
[null,"2024-08-01","Thursday",214,1]
[null,"2024-08-02","Friday",215,1]
[null,"2024-08-03","Saturday",216,0]
[null,"2024-08-04","Sunday",217,0]
[null,"2024-08-05","Monday",218,1]
[null,"2024-08-06","Tuesday",219,1]
[null,"2024-08-07","Wednesday",220,1]
[null,"2024-08-08","Thursday",221,1]
[null,"2024-08-09","Friday",222,1]
[null,"2024-08-10","Saturday",223,0]
[null,"2024-08-11","Sunday",224,0]
[null,"2024-08-12","Monday",225,1]
[null,"2024-08-13","Tuesday",226,1]
[null,"2024-08-14","Wednesday",227,1]
[null,"2024-08-15","Thursday",228,1]
[null,"2024-08-16","Friday",229,1]
[null,"2024-08-17","Saturday",230,0]
[null,"2024-08-18","Sunday",231,0]
[null,"2024-08-19","Monday",232,1]
[null,"2024-08-20","Tuesday",233,1]
[null,"2024-08-21","Wednesday",234,1]
[null,"2024-08-22","Thursday",235,1]
[null,"2024-08-23","Friday",236,1]
[null,"2024-08-24","Saturday",237,0]
[null,"2024-08-25","Sunday",238,0]
[null,"2024-08-26","Monday",239,1]
[null,"2024-08-27","Tuesday",240,1]
[null,"2024-08-28","Wednesday",241,1]
[null,"2024-08-29","Thursday",242,1]
[null,"2024-08-30","Friday",243,1]
[null,"2024-08-31","Saturday",244,0]
[null,"2024-09-01","Sunday",245,0]
[null,"2024-09-02","Monday",246,1]
[null,"2024-09-03","Tuesday",247,1]
[null,"2024-09-04","Wednesday",248,1]
[null,"2024-09-05","Thursday",249,1]
[null,"2024-09-06","Friday",250,1]
[null,"2024-09-07","Saturday",251,0]
[null,"2024-09-08","Sunday",252,0]
[null,"2024-09-09","Monday",253,1]
[null,"2024-09-10","Tuesday",254,1]
[null,"2024-09-11","Wednesday",255,1]
[null,"2024-09-12","Thursday",256,1]
[null,"2024-09-13","Friday",257,1]
[null,"2024-09-14","Saturday",258,0]
[null,"2024-09-15","Sunday",259,0]
[null,"2024-09-16","Monday",260,1]
[null,"2024-09-17","Tuesday",261,1]
[null,"2024-09-18","Wednesday",262,1]
[null,"2024-09-19","Thursday",263,1]
[null,"2024-09-20","Friday",264,1]
[null,"2024-09-21","Saturday",265,0]
[null,"2024-09-22","Sunday",266,0]
[null,"2024-09-23","Monday",267,1]
[null,"2024-09-24","Tuesday",268,1]
[null,"2024-09-25","Wednesday",269,1]
[null,"2024-09-26","Thursday",270,1]
[null,"2024-09-27","Friday",271,1]
[null,"2024-09-28","Saturday",272,0]
[null,"2024-09-29","Sunday",273,0]
[null,"2024-09-30","Monday",274,1]
[null,"2024-10-01","Tuesday",275,1]
[null,"2024-10-02","Wednesday",276,1]
[null,"2024-10-03","Thursday",277,1]
[null,"2024-10-04","Friday",278,1]
[null,"2024-10-05","Saturday",279,0]
[null,"2024-10-06","Sunday",280,0]
[null,"2024-10-07","Monday",281,1]
[null,"2024-10-08","Tuesday",282,1]
[null,"2024-10-09","Wednesday",283,1]
[null,"2024-10-10","Thursday",284,1]
[null,"2024-10-11","Friday",285,1]
[null,"2024-10-12","Saturday",286,0]
[null,"2024-10-13","Sunday",287,0]
[null,"2024-10-14","Monday",288,1]
[null,"2024-10-15","Tuesday",289,1]
[null,"2024-10-16","Wednesday",290,1]
[null,"2024-10-17","Thursday",291,1]
[null,"2024-10-18","Friday",292,1]
[null,"2024-10-19","Saturday",293,0]
[null,"2024-10-20","Sunday",294,0]
[null,"2024-10-21","Monday",295,1]
[null,"2024-10-22","Tuesday",296,1]
[null,"2024-10-23","Wednesday",297,1]
[null,"2024-10-24","Thursday",298,1]
[null,"2024-10-25","Friday",299,1]
[null,"2024-10-26","Saturday",300,0]
[null,"2024-10-27","Sunday",301,0]
[null,"2024-10-28","Monday",302,1]
[null,"2024-10-29","Tuesday",303,1]
[null,"2024-10-30","Wednesday",304,1]
[null,"2024-10-31","Thursday",305,1]
[null,"2024-11-01","Friday",306,1]
[null,"2024-11-02","Saturday",307,0]
[null,"2024-11-03","Sunday",308,0]
[null,"2024-11-04","Monday",309,1]
[null,"2024-11-05","Tuesday",310,1]
[null,"2024-11-06","Wednesday",311,1]
[null,"2024-11-07","Thursday",312,1]
[null,"2024-11-08","Friday",313,1]
[null,"2024-11-09","Saturday",314,0]
[null,"2024-11-10","Sunday",315,0]
[null,"2024-11-11","Monday",316,1]
[null,"2024-11-12","Tuesday",317,1]
[null,"2024-11-13","Wednesday",318,1]
[null,"2024-11-14","Thursday",319,1]
[null,"2024-11-15","Friday",320,1]
[null,"2024-11-16","Saturday",321,0]
[null,"2024-11-17","Sunday",322,0]
[null,"2024-11-18","Monday",323,1]
[null,"2024-11-19","Tuesday",324,1]
[null,"2024-11-20","Wednesday",325,1]
[null,"2024-11-21","Thursday",326,1]
[null,"2024-11-22","Friday",327,1]
[null,"2024-11-23","Saturday",328,0]
[null,"2024-11-24","Sunday",329,0]
[null,"2024-11-25","Monday",330,1]
[null,"2024-11-26","Tuesday",331,1]
[null,"2024-11-27","Wednesday",332,1]
[null,"2024-11-28","Thursday",333,1]
[null,"2024-11-29","Friday",334,1]
[null,"2024-11-30","Saturday",335,0]
[null,"2024-12-01","Sunday",336,0]
[null,"2024-12-02","Monday",337,1]
[null,"2024-12-03","Tuesday",338,1]
[null,"2024-12-04","Wednesday",339,1]
[null,"2024-12-05","Thursday",340,1]
[null,"2024-12-06","Friday",341,1]
[null,"2024-12-07","Saturday",342,0]
[null,"2024-12-08","Sunday",343,0]
[null,"2024-12-09","Monday",344,1]
[null,"2024-12-10","Tuesday",345,1]
[null,"2024-12-11","Wednesday",346,1]
[null,"2024-12-12","Thursday",347,1]
[null,"2024-12-13","Friday",348,1]
[null,"2024-12-14","Saturday",349,0]
[null,"2024-12-15","Sunday",350,0]
[null,"2024-12-16","Monday",351,1]
[null,"2024-12-17","Tuesday",352,1]
[null,"2024-12-18","Wednesday",353,1]
[null,"2024-12-19","Thursday",354,1]
[null,"2024-12-20","Friday",355,1]
[null,"2024-12-21","Saturday",356,0]
[null,"2024-12-22","Sunday",357,0]
[null,"2024-12-23","Monday",358,1]
[null,"2024-12-24","Tuesday",359,1]
[null,"2024-12-25","Wednesday",360,1]
[null,"2024-12-26","Thursday",361,1]
[null,"2024-12-27","Friday",362,1]
[null,"2024-12-28","Saturday",363,0]
[null,"2024-12-29","Sunday",364,0]
[null,"2024-12-30","Monday",365,1]
[null,"2024-12-31","Tuesday",366,1]
[null,null,null,null,{"$f":"SUM(E3:E368)","v":262}]

{"sheet":"Working Hours Calculator","index":2,"n_rows":18,"n_cols":11,"rows_kept":18,"cut":false,"hidden":false,"merged":[[7,0,7,6],[15,0,15,6]]}
[]
["Please use whichever calculator is relevant:"]
[]
["There are 262 potential working days in 2024 (all days minus weekends)"]
[]
[]
[]
["Hours Per Week "]
["Contracted Hours Per Week (Including AL/PH) for the whole year","Working Hours in 2023","Daily hours","Under 5 Years(35Xdaily hours)","Over 5 Years(40xdaily hours)","Total Hours Per Year (Excluding AL/PH) Under 5 Years Cont. Service","Total Hours Per Year (Excluding AL/PH) Over 5 Years Cont. Service","F*0.15494","G*0.18108","H+F","G+I"]
[25,{"$f":"C10*262","v":1310},{"$f":"A10/5","v":5},{"$f":"35*C10","v":175},{"$f":"40*C10","v":200},{"$f":"B10-D10","v":1135},{"$f":"B10-E10","v":1110},{"$f":"F10*0.15494","v":175.8569},{"$f":"G10*0.18108","v":200.99879999999999},{"$f":"F10+H10","v":1310.8569},{"$f":"G10+I10","v":1310.9988000000001}]
[]
[]
[]
[]
[]
["Total Hours Per Year "]
["Hours for the whole year (Including AL/PH)","Daily Hours","Under 5 Years(35Xdaily hours)","Over 5 Years(39xdaily hours)",null,"Total Hours Per Year (Excluding AL/PH) Under 5 Years Cont. Service","Total Hours Per Year (Excluding AL/PH) Over 5 Years Cont. Service","F*0.15494","G*0.18108","H+F","G+I"]
[1899.5,{"$f":"A18/262","v":7.25},{"$f":"35*B18","v":253.75},{"$f":"40*B18","v":290},null,{"$f":"A18-C18","v":1645.75},{"$f":"A18-D18","v":1609.5},{"$f":"F18*0.15494","v":254.99250499999999},{"$f":"G18*0.18108","v":291.44826},{"$f":"F18+H18","v":1900.7425049999999},{"$f":"G18+I18","v":1900.9482600000001}]

{"sheet":"2024 Template","index":3,"n_rows":370,"n_cols":35,"rows_kept":370,"cut":false,"hidden":false,"merged":[[10,4,10,8],[2,4,2,8],[78,4,78,8],[0,1,0,11],[8,4,8,8],[9,4,9,8],[4,1,9,2],[20,4,20,8],[11,4,11,8],[4,4,4,8],[5,4,5,8],[7,4,7,8],[6,4,6,8],[1,4,1,8],[3,4,3,8],[17,4,17,8],[79,4,79,8],[80,4,80,8],[81,4,81,8],[12,4,12,8],[18,4,18,8],[13,4,13,8],[16,4,16,8],[14,4,14,8],[15,4,15,8],[22,1,22,14],[21,4,21,8],[19,4,19,8]]}
[null,"ANNUALISED HOURS PLANNER 2024",null,null,null,null,null,null,null,null,null,null,null,null,null,null,null,null,null,null,null,null,null,null,"Days",null,null,"Y/N","Date","Day","Number of days","Working Days","Count working days for these dates"]
[null,null,null,null,null,null,null,null,null,null,null,null,null,null,null,null,null,null,null,null,null,null,null,null,1,null,null,"Yes","2024-01-01","Monday",1,1,{"$f":"IF($AC2>=$AI$2,IF($AC2<=$AI$3,AF2,0),0)","v":1},null,{"$f":"SList","v":"2024-01-01"}]
[null,null,null,null,null,null,null,null,null,null,null,null,null,null,null,null,null,null,null,null,null,null,null,null,2,null,null,"No","2024-01-02","Tuesday",2,1,{"$f":"IF($AC3>=$AI$2,IF($AC3<=$AI$3,AF3,0),0)","v":1},null,{"$f":"O9","v":"2024-12-31"}]
[null,null,null,null,"EMPLOYEE DETAILS:",null,null,null,null,null,null,null,null,null,null,null,null,null,null,null,null,null,null,null,3,null,null,null,"2024-01-03","Wednesday",3,1,1]
[null,"For guidance on using the spreadsheet, please click on the Guidance tab below.",null,null,"Name",null,null,null,null,null,null,null,null,null,null,null,null,null,null,null,null,null,null,null,4,null,null,null,"2024-01-04","Thursday",4,1,1]
[null,null,null,null,"Job Title",null,null,null,null,null,null,null,null,null,null,null,null,null,null,null,null,null,null,null,5,null,null,null,"2024-01-05","Friday",5,1,1]
[null,null,null,null,"Contracted hours this year (excluding AL and PH)",null,null,null,null,null,null,null,null,null,0,null,null,null,null,null,null,null,null,null,6,null,null,null,"2024-01-06","Saturday",6,0,0]
[null,null,null,null,"Start date",null,null,null,null,null,{"$f":"VALUE(SList)","v":45292},{"$f":"K8-1","v":45291},null,null,"2024-01-01",null,null,null,null,null,null,null,null,null,7,null,null,null,"2024-01-07","Sunday",7,0,0]
[null,null,null,null,"End date",null,null,null,null,null,{"$f":"VALUE(O9)","v":45657},{"$f":"K9+1","v":45658},null,null,"2024-12-31",null,null,null,null,null,null,null,null,null,null,null,null,null,"2024-01-08","Monday",8,1,1]
[null,null,null,null,"Greater than  5 Years Service?",null,null,null,null,null,null,null,null,null,"No",null,null,null,null,null,null,null,null,null,null,null,null,null,"2024-01-09","Tuesday",9,1,1]
[null,null,null,null,"Average number of days worked per week",null,null,null,null,null,null,null,null,null,5,null,null,null,null,null,null,null,null,null,null,null,null,null,"2024-01-10","Wednesday",10,1,1]
[null,null,null,null,"Hours taking start and end dates into account",null,null,null,null,{"$f":"O9-O8+ 1","v":366},{"$f":"IF(J12 >= 365,365,J12)","v":365},null,null,null,{"$f":"SUM(O7/262)*AG368","v":0},null,null,null,null,null,null,null,null,null,null,null,null,null,"2024-01-11","Thursday",11,1,1]
[null,null,null,null,null,null,null,null,null,null,null,null,null,null,null,null,null,null,null,null,null,null,null,null,null,null,null,null,"2024-01-12","Friday",12,1,1]
[null,null,null,null,"BROUGHT FORWARD HOURS:",null,null,null,null,null,null,null,null,null,null,null,null,null,null,null,null,null,null,null,null,null,null,null,"2024-01-13","Saturday",13,0,0]
[null,null,null,null,"Outstanding hours B/F from previous sheet",null,null,null,null,null,null,null,null,null,0,null,null,null,null,null,null,null,null,null,null,null,null,null,"2024-01-14","Sunday",14,0,0]
[null,null,null,null,"Outstanding AL/PH hours from previous sheet",null,null,null,null,null,null,null,null,null,0,null,null,null,null,null,null,null,null,null,null,null,null,null,"2024-01-15","Monday",15,1,1]
[null,null,null,null,null,null,null,null,null,null,null,null,null,null,null,null,null,null,null,null,null,null,null,null,null,null,null,null,"2024-01-16","Tuesday",16,1,1]
[null,null,null,null,"TOTALS:",null,null,null,null,null,null,null,null,null,null,null,null,null,null,null,null,null,null,null,null,null,null,null,"2024-01-17","Wednesday",17,1,1]
[null,null,null,null,"Total hours plus holiday entitlement (excluding B/F)",null,null,null,null,null,null,null,null,null,{"$f":"+O12+O80-O16","v":0},null,null,null,null,null,null,null,null,null,null,null,null,null,"2024-01-18","Thursday",18,1,1]
[null,null,null,null,"Average weekly hours ",null,null,null,null,null,{"$f":"O12/K79","v":0},null,null,null,{"$f":"ROUND(O19/AG370,4)","v":0},null,null,null,null,null,null,null,null,null,null,null,null,null,"2024-01-19","Friday",19,1,1]
[null,null,null,null,"Average daily hours",null,null,null,null,null,{"$f":"K20/5","v":0},null,null,null,{"$f":"ROUND(O20/O11,6)","v":0},null,null,null,null,null,null,null,null,null,null,null,null,null,"2024-01-20","Saturday",20,0,0]
[null,null,null,null,null,null,null,null,null,null,null,null,null,null,null,null,null,null,null,null,null,null,null,null,null,null,null,null,"2024-01-21","Sunday",21,0,0]
[null,"ANNUALISED HOURS PLANNER",null,null,null,null,null,null,null,null,null,null,null,null,null,null,null,null,null,null,null,null,null,null,null,null,null,null,"2024-01-22","Monday",22,1,1]
[null,"Week Start Date","Monday","Tuesday","Wednesday","Thursday","Friday","Saturday","Sunday","Sickness","Holiday","Special Leave","AL/PH Hours (Not Daily Average)","Weekly Total (Excl. AL/PH)","Hours Remaining (Excl. AL/PH)",null,null,null,null,null,null,null,null,null,null,null,null,null,"2024-01-23","Tuesday",23,1,1]
[{"$f":"VALUE(B25)","v":45292},"2024-01-01",0,0,0,0,0,0,0,{"$f":"IF(M25=0,COUNTIF(C25:I25,\"LSA\"),0)","v":0},{"$f":"IF(M25=0,COUNTIF(C25:I25,\"LHE\"),0)","v":0},{"$f":"COUNTIF(C25:I25,\"LSL\")","v":0},0,{"$f":"SUM(C25:I25)+(J25*$O$21)+(L25*$O$21)","v":0},{"$f":"O12+O15-N25","v":0},null,null,null,null,null,null,null,null,null,null,null,null,null,"2024-01-24","Wednesday",24,1,1]
[{"$f":"VALUE(B26)","v":45299},{"$f":"B25+7","v":"2024-01-08"},0,0,0,0,0,0,0,{"$f":"COUNTIF(C26:I26,\"LSA\")","v":0},{"$f":"IF(M26=0,COUNTIF(C26:I26,\"LHE\"),0)","v":0},{"$f":"COUNTIF(C26:I26,\"LSL\")","v":0},0,0,{"$f":"O25-N26","v":0},null,null,null,null,null,null,null,null,null,null,null,null,null,"2024-01-25","Thursday",25,1,1]
[45306,"2024-01-15",0,0,0,0,0,0,0,0,0,0,0,0,{"$f":"O26-N27","v":0},null,null,null,null,null,null,null,null,null,null,null,null,null,"2024-01-26","Friday",26,1,1]
[45313,"2024-01-22",0,0,0,0,0,0,0,0,0,0,0,0,0,null,null,null,null,null,null,null,null,null,null,null,null,null,"2024-01-27","Saturday",27,0,0]
[45320,"2024-01-29",0,0,0,0,0,0,0,0,0,0,0,0,0,null,null,null,null,null,null,null,null,null,null,null,null,null,"2024-01-28","Sunday",28,0,0]
[45327,"2024-02-05",0,0,0,0,0,0,0,0,0,0,0,0,0,null,null,null,null,null,null,null,null,null,null,null,null,null,"2024-01-29","Monday",29,1,1]
[45334,"2024-02-12",0,0,0,0,0,0,0,0,0,0,0,0,0,null,null,null,null,null,null,null,null,null,null,null,null,null,"2024-01-30","Tuesday",30,1,1]
[45341,"2024-02-19",0,0,0,0,0,0,0,0,0,0,0,0,0,null,null,null,null,null,null,null,null,null,null,null,null,null,"2024-01-31","Wednesday",31,1,1]
[45348,"2024-02-26",0,0,0,0,0,0,0,0,0,0,0,0,0,null,null,null,null,null,null,null,null,null,null,null,null,null,"2024-02-01","Thursday",32,1,1]
[45355,"2024-03-04",0,0,0,0,0,0,0,0,0,0,0,0,0,null,null,null,null,null,null,null,null,null,null,null,null,null,"2024-02-02","Friday",33,1,1]
[45362,"2024-03-11",0,0,0,0,0,0,0,0,0,0,0,0,0,null,null,null,null,null,null,null,null,null,null,null,null,null,"2024-02-03","Saturday",34,0,0]
[45369,"2024-03-18",0,0,0,0,0,0,0,0,0,0,0,0,0,null,null,null,null,null,null,null,null,null,null,null,null,null,"2024-02-04","Sunday",35,0,0]
[45376,"2024-03-25",0,0,0,0,0,0,0,0,0,0,0,0,0,null,null,null,null,null,null,null,null,null,null,null,null,null,"2024-02-05","Monday",36,1,1]
[45383,"2024-04-01",0,0,0,0,0,0,0,0,0,0,0,0,0,null,null,null,null,null,null,null,null,null,null,null,null,null,"2024-02-06","Tuesday",37,1,1]
[45390,"2024-04-08",0,0,0,0,0,0,0,0,0,0,0,0,0,null,null,null,null,null,null,null,null,null,null,null,null,null,"2024-02-07","Wednesday",38,1,1]
[45397,"2024-04-15",0,0,0,0,0,0,0,0,0,0,0,0,0,null,null,null,null,null,null,null,null,null,null,null,null,null,"2024-02-08","Thursday",39,1,1]
[45404,"2024-04-22",0,0,0,0,0,0,0,0,0,0,0,0,0,null,null,null,null,null,null,null,null,null,null,null,null,null,"2024-02-09","Friday",40,1,1]
[45411,"2024-04-29",0,0,0,0,0,0,0,0,0,0,0,0,0,null,null,null,null,null,null,null,null,null,null,null,null,null,"2024-02-10","Saturday",41,0,0]
[45418,"2024-05-06",0,0,0,0,0,0,0,0,0,0,0,0,0,null,null,null,null,null,null,null,null,null,null,null,null,null,"2024-02-11","Sunday",42,0,0]
[45425,"2024-05-13",0,0,0,0,0,0,0,0,0,0,0,0,0,null,null,null,null,null,null,null,null,null,null,null,null,null,"2024-02-12","Monday",43,1,1]
[45432,"2024-05-20",0,0,0,0,0,0,0,0,0,0,0,0,0,null,null,null,null,null,null,null,null,null,null,null,null,null,"2024-02-13","Tuesday",44,1,1]
[45439,"2024-05-27",0,0,0,0,0,0,0,0,0,0,0,0,0,null,null,null,null,null,null,null,null,null,null,null,null,null,"2024-02-14","Wednesday",45,1,1]
[45446,"2024-06-03",0,0,0,0,0,0,0,0,0,0,0,0,0,null,null,null,null,null,null,null,null,null,null,null,null,null,"2024-02-15","Thursday",46,1,1]
[45453,"2024-06-10",0,0,0,0,0,0,0,0,0,0,0,0,0,null,null,null,null,null,null,null,null,null,null,null,null,null,"2024-02-16","Friday",47,1,1]
[45460,"2024-06-17",0,0,0,0,0,0,0,0,0,0,0,0,0,null,null,null,null,null,null,null,null,null,null,null,null,null,"2024-02-17","Saturday",48,0,0]
[45467,"2024-06-24",0,0,0,0,0,0,0,0,0,0,0,0,0,null,null,null,null,null,null,null,null,null,null,null,null,null,"2024-02-18","Sunday",49,0,0]
[45474,"2024-07-01",0,0,0,0,0,0,0,0,0,0,0,0,0,null,null,null,null,null,null,null,null,null,null,null,null,null,"2024-02-19","Monday",50,1,1]
[45481,"2024-07-08",0,0,0,0,0,0,0,0,0,0,0,0,0,null,null,null,null,null,null,null,null,null,null,null,null,null,"2024-02-20","Tuesday",51,1,1]
[45488,"2024-07-15",0,0,0,0,0,0,0,0,0,0,0,0,0,null,null,null,null,null,null,null,null,null,null,null,null,null,"2024-02-21","Wednesday",52,1,1]
[45495,"2024-07-22",0,0,0,0,0,0,0,0,0,0,0,0,0,null,null,null,null,null,null,null,null,null,null,null,null,null,"2024-02-22","Thursday",53,1,1]
[45502,"2024-07-29",0,0,0,0,0,0,0,0,0,0,0,0,0,null,null,null,null,null,null,null,null,null,null,null,null,null,"2024-02-23","Friday",54,1,1]
[45509,"2024-08-05",0,0,0,0,0,0,0,0,0,0,0,0,0,null,null,null,null,null,null,null,null,null,null,null,null,null,"2024-02-24","Saturday",55,0,0]
[45516,"2024-08-12",0,0,0,0,0,0,0,0,0,0,0,0,0,null,null,null,null,null,null,null,null,null,null,null,null,null,"2024-02-25","Sunday",56,0,0]
[45523,{"$f":"B57+7","v":"2024-08-19"},0,0,0,0,0,0,0,0,0,0,0,{"$f":"SUM(C58:I58)+(J58*$O$21)+(L58*$O$21)","v":0},0,null,null,null,null,null,null,null,null,null,null,null,null,null,"2024-02-26","Monday",57,1,1]
[45530,"2024-08-26",0,0,0,0,0,0,0,0,0,0,0,0,0,null,null,null,null,null,null,null,null,null,null,null,null,null,"2024-02-27","Tuesday",58,1,1]
[45537,"2024-09-02",0,0,0,0,0,0,0,0,0,0,0,0,0,null,null,null,null,null,null,null,null,null,null,null,null,null,"2024-02-28","Wednesday",59,1,1]
[45544,"2024-09-09",0,0,0,0,0,0,0,0,0,0,0,0,0,null,null,null,null,null,null,null,null,null,null,null,null,null,"2024-02-29","Thursday",60,1,1]
[45551,"2024-09-16",0,0,0,0,0,0,0,0,0,0,0,0,0,null,null,null,null,null,null,null,null,null,null,null,null,null,"2024-03-01","Friday",61,1,1]
[45558,"2024-09-23",0,0,0,0,0,0,0,0,0,0,0,0,0,null,null,null,null,null,null,null,null,null,null,null,null,null,"2024-03-02","Saturday",62,0,0]
[45565,"2024-09-30",0,0,0,0,0,0,0,0,0,0,0,0,0,null,null,null,null,null,null,null,null,null,null,null,null,null,"2024-03-03","Sunday",63,0,0]
[45572,"2024-10-07",0,0,0,0,0,0,0,0,0,0,0,0,0,null,null,null,null,null,null,null,null,null,null,null,null,null,"2024-03-04","Monday",64,1,1]
[45579,"2024-10-14",0,0,0,0,0,0,5,0,0,0,0,0,0,null,null,null,null,null,null,null,null,null,null,null,null,null,"2024-03-05","Tuesday",65,1,1]
[45586,"2024-10-21",0,0,0,0,0,0,0,0,0,0,0,0,0,null,null,null,null,null,null,null,null,null,null,null,null,null,"2024-03-06","Wednesday",66,1,{"$f":"IF($AC67>=$AI$2,IF($AC67<=$AI$3,AF67,0),0)","v":1}]
[45593,"2024-10-28",0,0,0,0,0,0,0,0,0,0,0,0,0,null,null,null,null,null,null,null,null,null,null,null,null,null,"2024-03-07","Thursday",67,1,1]
[45600,"2024-11-04",0,0,0,0,0,0,0,0,0,0,0,0,0,null,null,null,null,null,null,null,null,null,null,null,null,null,"2024-03-08","Friday",68,1,1]
[45607,"2024-11-11",0,0,0,0,0,0,0,0,0,0,0,0,0,null,null,null,null,null,null,null,null,null,null,null,null,null,"2024-03-09","Saturday",69,0,0]
[45614,"2024-11-18",0,0,0,0,0,0,0,0,0,0,0,0,0,null,null,null,null,null,null,null,null,null,null,null,null,null,"2024-03-10","Sunday",70,0,0]
[45621,"2024-11-25",0,0,0,0,0,5,0,0,0,0,0,0,0,null,null,null,null,null,null,null,null,null,null,null,null,null,"2024-03-11","Monday",71,1,1]
[45628,"2024-12-02",0,0,0,0,0,0,0,0,0,0,0,0,0,null,null,null,null,null,null,null,null,null,null,null,null,null,"2024-03-12","Tuesday",72,1,1]
[45635,"2024-12-09",0,0,0,0,0,0,0,0,0,0,0,0,0,null,null,null,null,null,null,null,null,null,null,null,null,null,"2024-03-13","Wednesday",73,1,1]
[45642,"2024-12-16",0,0,0,0,0,0,0,0,0,0,0,0,0,null,null,null,null,null,null,null,null,null,null,null,null,null,"2024-03-14","Thursday",74,1,1]
[45649,"2024-12-23",0,0,0,0,0,0,0,0,0,0,0,0,0,null,null,null,null,null,null,null,null,null,null,null,null,null,"2024-03-15","Friday",75,1,1]
[45656,"2024-12-30",0,0,0,0,0,0,0,0,0,0,0,0,0,null,null,null,null,null,null,null,null,null,null,null,null,null,"2024-03-16","Saturday",76,0,0]
[null,null,null,null,null,null,null,null,null,null,null,null,null,null,null,null,null,null,null,null,null,null,null,null,null,null,null,null,"2024-03-17","Sunday",77,0,0]
[null,null,null,null,"ANNUAL LEAVE AND PUBLIC HOLIDAY (AL/PH):",null,null,null,null,{"$f":"J12/7","v":52.285714285714285},{"$f":"K12/7","v":52.142857142857146},null,null,null,null,null,null,null,null,null,null,null,null,null,null,null,null,null,"2024-03-18","Monday",78,1,1]
[null,null,null,null,"Annual leave and public holiday entitlement (Inc. B/F) ",null,null,null,null,null,null,null,null,null,{"$f":"IF($O$10= \"Yes\",$O$12*0.18018018,$O$12*0.154185022)+O16","v":0},null,null,null,null,null,null,null,null,null,null,null,null,null,"2024-03-19","Tuesday",79,1,1]
[null,null,null,null,"Annual leave and public holiday taken",null,null,null,null,{"$f":"SUM($K$25:$K$77)","v":0},{"$f":"SUM($M$25:$M$77)","v":0},null,null,null,{"$f":"J81*$O$21+K81","v":0},null,null,null,null,null,null,null,null,null,null,null,null,null,"2024-03-20","Wednesday",80,1,1]
[null,null,null,null,"Annual leave and public holiday remaining",null,null,null,null,null,null,null,null,null,{"$f":"O80-O81","v":0},null,null,null,null,null,null,null,null,null,null,null,null,null,"2024-03-21","Thursday",81,1,1]
[null,null,null,null,null,null,null,null,null,null,null,null,null,null,null,null,null,null,null,null,null,null,null,null,null,null,null,null,"2024-03-22","Friday",82,1,1]
[null,null,null,null,null,null,null,null,null,null,null,null,null,null,null,null,null,null,null,null,null,null,null,null,null,null,null,null,"2024-03-23","Saturday",83,0,0]
[null,null,null,null,null,null,null,null,null,null,null,null,null,null,null,null,null,null,null,null,null,null,null,null,null,null,null,null,"2024-03-24","Sunday",84,0,0]
[null,null,null,null,null,null,null,null,null,null,null,null,null,null,null,null,null,null,null,null,null,null,null,null,null,null,null,null,"2024-03-25","Monday",85,1,1]
[null,null,null,null,null,null,null,null,null,null,null,null,null,null,null,null,null,null,null,null,null,null,null,null,null,null,null,null,"2024-03-26","Tuesday",86,1,1]
[null,null,null,null,null,null,null,null,null,null,null,null,null,null,null,null,null,null,null,null,null,null,null,null,null,null,null,null,"2024-03-27","Wednesday",87,1,1]
[null,null,null,null,null,null,null,null,null,null,null,null,null,null,null,null,null,null,null,null,null,null,null,null,null,null,null,null,"2024-03-28","Thursday",88,1,1]
[null,null,null,null,null,null,null,null,null,null,null,null,null,null,null,null,null,null,null,null,null,null,null,null,null,null,null,null,"2024-03-29","Friday",89,1,1]
[null,null,null,null,null,null,null,null,null,null,null,null,null,null,null,null,null,null,null,null,null,null,null,null,null,null,null,null,"2024-03-30","Saturday",90,0,0]
[null,null,null,null,null,null,null,null,null,null,null,null,null,null,null,null,null,null,null,null,null,null,null,null,null,null,null,null,"2024-03-31","Sunday",91,0,0]
[null,null,null,null,null,null,null,null,null,null,null,null,null,null,null,null,null,null,null,null,null,null,null,null,null,null,null,null,"2024-04-01","Monday",92,1,1]
[null,null,null,null,null,null,null,null,null,null,null,null,null,null,null,null,null,null,null,null,null,null,null,null,null,null,null,null,"2024-04-02","Tuesday",93,1,1]
[null,null,null,null,null,null,null,null,null,null,null,null,null,null,null,null,null,null,null,null,null,null,null,null,null,null,null,null,"2024-04-03","Wednesday",94,1,1]
[null,null,null,null,null,null,null,null,null,null,null,null,null,null,null,null,null,null,null,null,null,null,null,null,null,null,null,null,"2024-04-04","Thursday",95,1,1]
[null,null,null,null,null,null,null,null,null,null,null,null,null,null,null,null,null,null,null,null,null,null,null,null,null,null,null,null,"2024-04-05","Friday",96,1,1]
[null,null,null,null,null,null,null,null,null,null,null,null,null,null,null,null,null,null,null,null,null,null,null,null,null,null,null,null,"2024-04-06","Saturday",97,0,0]
[null,null,null,null,null,null,null,null,null,null,null,null,null,null,null,null,null,null,null,null,null,null,null,null,null,null,null,null,"2024-04-07","Sunday",98,0,0]
[null,null,null,null,null,null,null,null,null,null,null,null,null,null,null,null,null,null,null,null,null,null,null,null,null,null,null,null,"2024-04-08","Monday",99,1,1]
[null,null,null,null,null,null,null,null,null,null,null,null,null,null,null,null,null,null,null,null,null,null,null,null,null,null,null,null,"2024-04-09","Tuesday",100,1,1]
[null,null,null,null,null,null,null,null,null,null,null,null,null,null,null,null,null,null,null,null,null,null,null,null,null,null,null,null,"2024-04-10","Wednesday",101,1,1]
[null,null,null,null,null,null,null,null,null,null,null,null,null,null,null,null,null,null,null,null,null,null,null,null,null,null,null,null,"2024-04-11","Thursday",102,1,1]
[null,null,null,null,null,null,null,null,null,null,null,null,null,null,null,null,null,null,null,null,null,null,null,null,null,null,null,null,"2024-04-12","Friday",103,1,1]
[null,null,null,null,null,null,null,null,null,null,null,null,null,null,null,null,null,null,null,null,null,null,null,null,null,null,null,null,"2024-04-13","Saturday",104,0,0]
[null,null,null,null,null,null,null,null,null,null,null,null,null,null,null,null,null,null,null,null,null,null,null,null,null,null,null,null,"2024-04-14","Sunday",105,0,0]
[null,null,null,null,null,null,null,null,null,null,null,null,null,null,null,null,null,null,null,null,null,null,null,null,null,null,null,null,"2024-04-15","Monday",106,1,1]
[null,null,null,null,null,null,null,null,null,null,null,null,null,null,null,null,null,null,null,null,null,null,null,null,null,null,null,null,"2024-04-16","Tuesday",107,1,1]
[null,null,null,null,null,null,null,null,null,null,null,null,null,null,null,null,null,null,null,null,null,null,null,null,null,null,null,null,"2024-04-17","Wednesday",108,1,1]
[null,null,null,null,null,null,null,null,null,null,null,null,null,null,null,null,null,null,null,null,null,null,null,null,null,null,null,null,"2024-04-18","Thursday",109,1,1]
[null,null,null,null,null,null,null,null,null,null,null,null,null,null,null,null,null,null,null,null,null,null,null,null,null,null,null,null,"2024-04-19","Friday",110,1,1]
[null,null,null,null,null,null,null,null,null,null,null,null,null,null,null,null,null,null,null,null,null,null,null,null,null,null,null,null,"2024-04-20","Saturday",111,0,0]
[null,null,null,null,null,null,null,null,null,null,null,null,null,null,null,null,null,null,null,null,null,null,null,null,null,null,null,null,"2024-04-21","Sunday",112,0,0]
[null,null,null,null,null,null,null,null,null,null,null,null,null,null,null,null,null,null,null,null,null,null,null,null,null,null,null,null,"2024-04-22","Monday",113,1,1]
[null,null,null,null,null,null,null,null,null,null,null,null,null,null,null,null,null,null,null,null,null,null,null,null,null,null,null,null,"2024-04-23","Tuesday",114,1,1]
[null,null,null,null,null,null,null,null,null,null,null,null,null,null,null,null,null,null,null,null,null,null,null,null,null,null,null,null,"2024-04-24","Wednesday",115,1,1]
[null,null,null,null,null,null,null,null,null,null,null,null,null,null,null,null,null,null,null,null,null,null,null,null,null,null,null,null,"2024-04-25","Thursday",116,1,1]
[null,null,null,null,null,null,null,null,null,null,null,null,null,null,null,null,null,null,null,null,null,null,null,null,null,null,null,null,"2024-04-26","Friday",117,1,1]
[null,null,null,null,null,null,null,null,null,null,null,null,null,null,null,null,null,null,null,null,null,null,null,null,null,null,null,null,"2024-04-27","Saturday",118,0,0]
[null,null,null,null,null,null,null,null,null,null,null,null,null,null,null,null,null,null,null,null,null,null,null,null,null,null,null,null,"2024-04-28","Sunday",119,0,0]
[null,null,null,null,null,null,null,null,null,null,null,null,null,null,null,null,null,null,null,null,null,null,null,null,null,null,null,null,"2024-04-29","Monday",120,1,1]
[null,null,null,null,null,null,null,null,null,null,null,null,null,null,null,null,null,null,null,null,null,null,null,null,null,null,null,null,"2024-04-30","Tuesday",121,1,1]
[null,null,null,null,null,null,null,null,null,null,null,null,null,null,null,null,null,null,null,null,null,null,null,null,null,null,null,null,"2024-05-01","Wednesday",122,1,1]
[null,null,null,null,null,null,null,null,null,null,null,null,null,null,null,null,null,null,null,null,null,null,null,null,null,null,null,null,"2024-05-02","Thursday",123,1,1]
[null,null,null,null,null,null,null,null,null,null,null,null,null,null,null,null,null,null,null,null,null,null,null,null,null,null,null,null,"2024-05-03","Friday",124,1,1]
[null,null,null,null,null,null,null,null,null,null,null,null,null,null,null,null,null,null,null,null,null,null,null,null,null,null,null,null,"2024-05-04","Saturday",125,0,0]
[null,null,null,null,null,null,null,null,null,null,null,null,null,null,null,null,null,null,null,null,null,null,null,null,null,null,null,null,"2024-05-05","Sunday",126,0,0]
[null,null,null,null,null,null,null,null,null,null,null,null,null,null,null,null,null,null,null,null,null,null,null,null,null,null,null,null,"2024-05-06","Monday",127,1,1]
[null,null,null,null,null,null,null,null,null,null,null,null,null,null,null,null,null,null,null,null,null,null,null,null,null,null,null,null,"2024-05-07","Tuesday",128,1,1]
[null,null,null,null,null,null,null,null,null,null,null,null,null,null,null,null,null,null,null,null,null,null,null,null,null,null,null,null,"2024-05-08","Wednesday",129,1,1]
[null,null,null,null,null,null,null,null,null,null,null,null,null,null,null,null,null,null,null,null,null,null,null,null,null,null,null,null,"2024-05-09","Thursday",130,1,{"$f":"IF($AC131>=$AI$2,IF($AC131<=$AI$3,AF131,0),0)","v":1}]
[null,null,null,null,null,null,null,null,null,null,null,null,null,null,null,null,null,null,null,null,null,null,null,null,null,null,null,null,"2024-05-10","Friday",131,1,1]
[null,null,null,null,null,null,null,null,null,null,null,null,null,null,null,null,null,null,null,null,null,null,null,null,null,null,null,null,"2024-05-11","Saturday",132,0,0]
[null,null,null,null,null,null,null,null,null,null,null,null,null,null,null,null,null,null,null,null,null,null,null,null,null,null,null,null,"2024-05-12","Sunday",133,0,0]
[null,null,null,null,null,null,null,null,null,null,null,null,null,null,null,null,null,null,null,null,null,null,null,null,null,null,null,null,"2024-05-13","Monday",134,1,1]
[null,null,null,null,null,null,null,null,null,null,null,null,null,null,null,null,null,null,null,null,null,null,null,null,null,null,null,null,"2024-05-14","Tuesday",135,1,1]
[null,null,null,null,null,null,null,null,null,null,null,null,null,null,null,null,null,null,null,null,null,null,null,null,null,null,null,null,"2024-05-15","Wednesday",136,1,1]
[null,null,null,null,null,null,null,null,null,null,null,null,null,null,null,null,null,null,null,null,null,null,null,null,null,null,null,null,"2024-05-16","Thursday",137,1,1]
[null,null,null,null,null,null,null,null,null,null,null,null,null,null,null,null,null,null,null,null,null,null,null,null,null,null,null,null,"2024-05-17","Friday",138,1,1]
[null,null,null,null,null,null,null,null,null,null,null,null,null,null,null,null,null,null,null,null,null,null,null,null,null,null,null,null,"2024-05-18","Saturday",139,0,0]
[null,null,null,null,null,null,null,null,null,null,null,null,null,null,null,null,null,null,null,null,null,null,null,null,null,null,null,null,"2024-05-19","Sunday",140,0,0]
[null,null,null,null,null,null,null,null,null,null,null,null,null,null,null,null,null,null,null,null,null,null,null,null,null,null,null,null,"2024-05-20","Monday",141,1,1]
[null,null,null,null,null,null,null,null,null,null,null,null,null,null,null,null,null,null,null,null,null,null,null,null,null,null,null,null,"2024-05-21","Tuesday",142,1,1]
[null,null,null,null,null,null,null,null,null,null,null,null,null,null,null,null,null,null,null,null,null,null,null,null,null,null,null,null,"2024-05-22","Wednesday",143,1,1]
[null,null,null,null,null,null,null,null,null,null,null,null,null,null,null,null,null,null,null,null,null,null,null,null,null,null,null,null,"2024-05-23","Thursday",144,1,1]
[null,null,null,null,null,null,null,null,null,null,null,null,null,null,null,null,null,null,null,null,null,null,null,null,null,null,null,null,"2024-05-24","Friday",145,1,1]
[null,null,null,null,null,null,null,null,null,null,null,null,null,null,null,null,null,null,null,null,null,null,null,null,null,null,null,null,"2024-05-25","Saturday",146,0,0]
[null,null,null,null,null,null,null,null,null,null,null,null,null,null,null,null,null,null,null,null,null,null,null,null,null,null,null,null,"2024-05-26","Sunday",147,0,0]
[null,null,null,null,null,null,null,null,null,null,null,null,null,null,null,null,null,null,null,null,null,null,null,null,null,null,null,null,"2024-05-27","Monday",148,1,1]
[null,null,null,null,null,null,null,null,null,null,null,null,null,null,null,null,null,null,null,null,null,null,null,null,null,null,null,null,"2024-05-28","Tuesday",149,1,1]
[null,null,null,null,null,null,null,null,null,null,null,null,null,null,null,null,null,null,null,null,null,null,null,null,null,null,null,null,"2024-05-29","Wednesday",150,1,1]
[null,null,null,null,null,null,null,null,null,null,null,null,null,null,null,null,null,null,null,null,null,null,null,null,null,null,null,null,"2024-05-30","Thursday",151,1,1]
[null,null,null,null,null,null,null,null,null,null,null,null,null,null,null,null,null,null,null,null,null,null,null,null,null,null,null,null,"2024-05-31","Friday",152,1,1]
[null,null,null,null,null,null,null,null,null,null,null,null,null,null,null,null,null,null,null,null,null,null,null,null,null,null,null,null,"2024-06-01","Saturday",153,0,0]
[null,null,null,null,null,null,null,null,null,null,null,null,null,null,null,null,null,null,null,null,null,null,null,null,null,null,null,null,"2024-06-02","Sunday",154,0,0]
[null,null,null,null,null,null,null,null,null,null,null,null,null,null,null,null,null,null,null,null,null,null,null,null,null,null,null,null,"2024-06-03","Monday",155,1,1]
[null,null,null,null,null,null,null,null,null,null,null,null,null,null,null,null,null,null,null,null,null,null,null,null,null,null,null,null,"2024-06-04","Tuesday",156,1,1]
[null,null,null,null,null,null,null,null,null,null,null,null,null,null,null,null,null,null,null,null,null,null,null,null,null,null,null,null,"2024-06-05","Wednesday",157,1,1]
[null,null,null,null,null,null,null,null,null,null,null,null,null,null,null,null,null,null,null,null,null,null,null,null,null,null,null,null,"2024-06-06","Thursday",158,1,1]
[null,null,null,null,null,null,null,null,null,null,null,null,null,null,null,null,null,null,null,null,null,null,null,null,null,null,null,null,"2024-06-07","Friday",159,1,1]
[null,null,null,null,null,null,null,null,null,null,null,null,null,null,null,null,null,null,null,null,null,null,null,null,null,null,null,null,"2024-06-08","Saturday",160,0,0]
[null,null,null,null,null,null,null,null,null,null,null,null,null,null,null,null,null,null,null,null,null,null,null,null,null,null,null,null,"2024-06-09","Sunday",161,0,0]
[null,null,null,null,null,null,null,null,null,null,null,null,null,null,null,null,null,null,null,null,null,null,null,null,null,null,null,null,"2024-06-10","Monday",162,1,1]
[null,null,null,null,null,null,null,null,null,null,null,null,null,null,null,null,null,null,null,null,null,null,null,null,null,null,null,null,"2024-06-11","Tuesday",163,1,1]
[null,null,null,null,null,null,null,null,null,null,null,null,null,null,null,null,null,null,null,null,null,null,null,null,null,null,null,null,"2024-06-12","Wednesday",164,1,1]
[null,null,null,null,null,null,null,null,null,null,null,null,null,null,null,null,null,null,null,null,null,null,null,null,null,null,null,null,"2024-06-13","Thursday",165,1,1]
[null,null,null,null,null,null,null,null,null,null,null,null,null,null,null,null,null,null,null,null,null,null,null,null,null,null,null,null,"2024-06-14","Friday",166,1,1]
[null,null,null,null,null,null,null,null,null,null,null,null,null,null,null,null,null,null,null,null,null,null,null,null,null,null,null,null,"2024-06-15","Saturday",167,0,0]
[null,null,null,null,null,null,null,null,null,null,null,null,null,null,null,null,null,null,null,null,null,null,null,null,null,null,null,null,"2024-06-16","Sunday",168,0,0]
[null,null,null,null,null,null,null,null,null,null,null,null,null,null,null,null,null,null,null,null,null,null,null,null,null,null,null,null,"2024-06-17","Monday",169,1,1]
[null,null,null,null,null,null,null,null,null,null,null,null,null,null,null,null,null,null,null,null,null,null,null,null,null,null,null,null,"2024-06-18","Tuesday",170,1,1]
[null,null,null,null,null,null,null,null,null,null,null,null,null,null,null,null,null,null,null,null,null,null,null,null,null,null,null,null,"2024-06-19","Wednesday",171,1,1]
[null,null,null,null,null,null,null,null,null,null,null,null,null,null,null,null,null,null,null,null,null,null,null,null,null,null,null,null,"2024-06-20","Thursday",172,1,1]
[null,null,null,null,null,null,null,null,null,null,null,null,null,null,null,null,null,null,null,null,null,null,null,null,null,null,null,null,"2024-06-21","Friday",173,1,1]
[null,null,null,null,null,null,null,null,null,null,null,null,null,null,null,null,null,null,null,null,null,null,null,null,null,null,null,null,"2024-06-22","Saturday",174,0,0]
[null,null,null,null,null,null,null,null,null,null,null,null,null,null,null,null,null,null,null,null,null,null,null,null,null,null,null,null,"2024-06-23","Sunday",175,0,0]
[null,null,null,null,null,null,null,null,null,null,null,null,null,null,null,null,null,null,null,null,null,null,null,null,null,null,null,null,"2024-06-24","Monday",176,1,1]
[null,null,null,null,null,null,null,null,null,null,null,null,null,null,null,null,null,null,null,null,null,null,null,null,null,null,null,null,"2024-06-25","Tuesday",177,1,1]
[null,null,null,null,null,null,null,null,null,null,null,null,null,null,null,null,null,null,null,null,null,null,null,null,null,null,null,null,"2024-06-26","Wednesday",178,1,1]
[null,null,null,null,null,null,null,null,null,null,null,null,null,null,null,null,null,null,null,null,null,null,null,null,null,null,null,null,"2024-06-27","Thursday",179,1,1]
[null,null,null,null,null,null,null,null,null,null,null,null,null,null,null,null,null,null,null,null,null,null,null,null,null,null,null,null,"2024-06-28","Friday",180,1,1]
[null,null,null,null,null,null,null,null,null,null,null,null,null,null,null,null,null,null,null,null,null,null,null,null,null,null,null,null,"2024-06-29","Saturday",181,0,0]
[null,null,null,null,null,null,null,null,null,null,null,null,null,null,null,null,null,null,null,null,null,null,null,null,null,null,null,null,"2024-06-30","Sunday",182,0,0]
[null,null,null,null,null,null,null,null,null,null,null,null,null,null,null,null,null,null,null,null,null,null,null,null,null,null,null,null,"2024-07-01","Monday",183,1,1]
[null,null,null,null,null,null,null,null,null,null,null,null,null,null,null,null,null,null,null,null,null,null,null,null,null,null,null,null,"2024-07-02","Tuesday",184,1,1]
[null,null,null,null,null,null,null,null,null,null,null,null,null,null,null,null,null,null,null,null,null,null,null,null,null,null,null,null,"2024-07-03","Wednesday",185,1,1]
[null,null,null,null,null,null,null,null,null,null,null,null,null,null,null,null,null,null,null,null,null,null,null,null,null,null,null,null,"2024-07-04","Thursday",186,1,1]
[null,null,null,null,null,null,null,null,null,null,null,null,null,null,null,null,null,null,null,null,null,null,null,null,null,null,null,null,"2024-07-05","Friday",187,1,1]
[null,null,null,null,null,null,null,null,null,null,null,null,null,null,null,null,null,null,null,null,null,null,null,null,null,null,null,null,"2024-07-06","Saturday",188,0,0]
[null,null,null,null,null,null,null,null,null,null,null,null,null,null,null,null,null,null,null,null,null,null,null,null,null,null,null,null,"2024-07-07","Sunday",189,0,0]
[null,null,null,null,null,null,null,null,null,null,null,null,null,null,null,null,null,null,null,null,null,null,null,null,null,null,null,null,"2024-07-08","Monday",190,1,1]
[null,null,null,null,null,null,null,null,null,null,null,null,null,null,null,null,null,null,null,null,null,null,null,null,null,null,null,null,"2024-07-09","Tuesday",191,1,1]
[null,null,null,null,null,null,null,null,null,null,null,null,null,null,null,null,null,null,null,null,null,null,null,null,null,null,null,null,"2024-07-10","Wednesday",192,1,1]
[null,null,null,null,null,null,null,null,null,null,null,null,null,null,null,null,null,null,null,null,null,null,null,null,null,null,null,null,"2024-07-11","Thursday",193,1,1]
[null,null,null,null,null,null,null,null,null,null,null,null,null,null,null,null,null,null,null,null,null,null,null,null,null,null,null,null,"2024-07-12","Friday",194,1,{"$f":"IF($AC195>=$AI$2,IF($AC195<=$AI$3,AF195,0),0)","v":1}]
[null,null,null,null,null,null,null,null,null,null,null,null,null,null,null,null,null,null,null,null,null,null,null,null,null,null,null,null,"2024-07-13","Saturday",195,0,0]
[null,null,null,null,null,null,null,null,null,null,null,null,null,null,null,null,null,null,null,null,null,null,null,null,null,null,null,null,"2024-07-14","Sunday",196,0,0]
[null,null,null,null,null,null,null,null,null,null,null,null,null,null,null,null,null,null,null,null,null,null,null,null,null,null,null,null,"2024-07-15","Monday",197,1,1]
[null,null,null,null,null,null,null,null,null,null,null,null,null,null,null,null,null,null,null,null,null,null,null,null,null,null,null,null,"2024-07-16","Tuesday",198,1,1]
[null,null,null,null,null,null,null,null,null,null,null,null,null,null,null,null,null,null,null,null,null,null,null,null,null,null,null,null,"2024-07-17","Wednesday",199,1,1]
[null,null,null,null,null,null,null,null,null,null,null,null,null,null,null,null,null,null,null,null,null,null,null,null,null,null,null,null,"2024-07-18","Thursday",200,1,1]
[null,null,null,null,null,null,null,null,null,null,null,null,null,null,null,null,null,null,null,null,null,null,null,null,null,null,null,null,"2024-07-19","Friday",201,1,1]
[null,null,null,null,null,null,null,null,null,null,null,null,null,null,null,null,null,null,null,null,null,null,null,null,null,null,null,null,"2024-07-20","Saturday",202,0,0]
[null,null,null,null,null,null,null,null,null,null,null,null,null,null,null,null,null,null,null,null,null,null,null,null,null,null,null,null,"2024-07-21","Sunday",203,0,0]
[null,null,null,null,null,null,null,null,null,null,null,null,null,null,null,null,null,null,null,null,null,null,null,null,null,null,null,null,"2024-07-22","Monday",204,1,1]
[null,null,null,null,null,null,null,null,null,null,null,null,null,null,null,null,null,null,null,null,null,null,null,null,null,null,null,null,"2024-07-23","Tuesday",205,1,1]
[null,null,null,null,null,null,null,null,null,null,null,null,null,null,null,null,null,null,null,null,null,null,null,null,null,null,null,null,"2024-07-24","Wednesday",206,1,1]
[null,null,null,null,null,null,null,null,null,null,null,null,null,null,null,null,null,null,null,null,null,null,null,null,null,null,null,null,"2024-07-25","Thursday",207,1,1]
[null,null,null,null,null,null,null,null,null,null,null,null,null,null,null,null,null,null,null,null,null,null,null,null,null,null,null,null,"2024-07-26","Friday",208,1,1]
[null,null,null,null,null,null,null,null,null,null,null,null,null,null,null,null,null,null,null,null,null,null,null,null,null,null,null,null,"2024-07-27","Saturday",209,0,0]
[null,null,null,null,null,null,null,null,null,null,null,null,null,null,null,null,null,null,null,null,null,null,null,null,null,null,null,null,"2024-07-28","Sunday",210,0,0]
[null,null,null,null,null,null,null,null,null,null,null,null,null,null,null,null,null,null,null,null,null,null,null,null,null,null,null,null,"2024-07-29","Monday",211,1,1]
[null,null,null,null,null,null,null,null,null,null,null,null,null,null,null,null,null,null,null,null,null,null,null,null,null,null,null,null,"2024-07-30","Tuesday",212,1,1]
[null,null,null,null,null,null,null,null,null,null,null,null,null,null,null,null,null,null,null,null,null,null,null,null,null,null,null,null,"2024-07-31","Wednesday",213,1,1]
[null,null,null,null,null,null,null,null,null,null,null,null,null,null,null,null,null,null,null,null,null,null,null,null,null,null,null,null,"2024-08-01","Thursday",214,1,1]
[null,null,null,null,null,null,null,null,null,null,null,null,null,null,null,null,null,null,null,null,null,null,null,null,null,null,null,null,"2024-08-02","Friday",215,1,1]
[null,null,null,null,null,null,null,null,null,null,null,null,null,null,null,null,null,null,null,null,null,null,null,null,null,null,null,null,"2024-08-03","Saturday",216,0,0]
[null,null,null,null,null,null,null,null,null,null,null,null,null,null,null,null,null,null,null,null,null,null,null,null,null,null,null,null,"2024-08-04","Sunday",217,0,0]
[null,null,null,null,null,null,null,null,null,null,null,null,null,null,null,null,null,null,null,null,null,null,null,null,null,null,null,null,"2024-08-05","Monday",218,1,1]
[null,null,null,null,null,null,null,null,null,null,null,null,null,null,null,null,null,null,null,null,null,null,null,null,null,null,null,null,"2024-08-06","Tuesday",219,1,1]
[null,null,null,null,null,null,null,null,null,null,null,null,null,null,null,null,null,null,null,null,null,null,null,null,null,null,null,null,"2024-08-07","Wednesday",220,1,1]
[null,null,null,null,null,null,null,null,null,null,null,null,null,null,null,null,null,null,null,null,null,null,null,null,null,null,null,null,"2024-08-08","Thursday",221,1,1]
[null,null,null,null,null,null,null,null,null,null,null,null,null,null,null,null,null,null,null,null,null,null,null,null,null,null,null,null,"2024-08-09","Friday",222,1,1]
[null,null,null,null,null,null,null,null,null,null,null,null,null,null,null,null,null,null,null,null,null,null,null,null,null,null,null,null,"2024-08-10","Saturday",223,0,0]
[null,null,null,null,null,null,null,null,null,null,null,null,null,null,null,null,null,null,null,null,null,null,null,null,null,null,null,null,"2024-08-11","Sunday",224,0,0]
[null,null,null,null,null,null,null,null,null,null,null,null,null,null,null,null,null,null,null,null,null,null,null,null,null,null,null,null,"2024-08-12","Monday",225,1,1]
[null,null,null,null,null,null,null,null,null,null,null,null,null,null,null,null,null,null,null,null,null,null,null,null,null,null,null,null,"2024-08-13","Tuesday",226,1,1]
[null,null,null,null,null,null,null,null,null,null,null,null,null,null,null,null,null,null,null,null,null,null,null,null,null,null,null,null,"2024-08-14","Wednesday",227,1,1]
[null,null,null,null,null,null,null,null,null,null,null,null,null,null,null,null,null,null,null,null,null,null,null,null,null,null,null,null,"2024-08-15","Thursday",228,1,1]
[null,null,null,null,null,null,null,null,null,null,null,null,null,null,null,null,null,null,null,null,null,null,null,null,null,null,null,null,"2024-08-16","Friday",229,1,1]
[null,null,null,null,null,null,null,null,null,null,null,null,null,null,null,null,null,null,null,null,null,null,null,null,null,null,null,null,"2024-08-17","Saturday",230,0,0]
[null,null,null,null,null,null,null,null,null,null,null,null,null,null,null,null,null,null,null,null,null,null,null,null,null,null,null,null,"2024-08-18","Sunday",231,0,0]
[null,null,null,null,null,null,null,null,null,null,null,null,null,null,null,null,null,null,null,null,null,null,null,null,null,null,null,null,"2024-08-19","Monday",232,1,1]
[null,null,null,null,null,null,null,null,null,null,null,null,null,null,null,null,null,null,null,null,null,null,null,null,null,null,null,null,"2024-08-20","Tuesday",233,1,1]
[null,null,null,null,null,null,null,null,null,null,null,null,null,null,null,null,null,null,null,null,null,null,null,null,null,null,null,null,"2024-08-21","Wednesday",234,1,1]
[null,null,null,null,null,null,null,null,null,null,null,null,null,null,null,null,null,null,null,null,null,null,null,null,null,null,null,null,"2024-08-22","Thursday",235,1,1]
[null,null,null,null,null,null,null,null,null,null,null,null,null,null,null,null,null,null,null,null,null,null,null,null,null,null,null,null,"2024-08-23","Friday",236,1,1]
[null,null,null,null,null,null,null,null,null,null,null,null,null,null,null,null,null,null,null,null,null,null,null,null,null,null,null,null,"2024-08-24","Saturday",237,0,0]
[null,null,null,null,null,null,null,null,null,null,null,null,null,null,null,null,null,null,null,null,null,null,null,null,null,null,null,null,"2024-08-25","Sunday",238,0,0]
[null,null,null,null,null,null,null,null,null,null,null,null,null,null,null,null,null,null,null,null,null,null,null,null,null,null,null,null,"2024-08-26","Monday",239,1,1]
[null,null,null,null,null,null,null,null,null,null,null,null,null,null,null,null,null,null,null,null,null,null,null,null,null,null,null,null,"2024-08-27","Tuesday",240,1,1]
[null,null,null,null,null,null,null,null,null,null,null,null,null,null,null,null,null,null,null,null,null,null,null,null,null,null,null,null,"2024-08-28","Wednesday",241,1,1]
[null,null,null,null,null,null,null,null,null,null,null,null,null,null,null,null,null,null,null,null,null,null,null,null,null,null,null,null,"2024-08-29","Thursday",242,1,1]
[null,null,null,null,null,null,null,null,null,null,null,null,null,null,null,null,null,null,null,null,null,null,null,null,null,null,null,null,"2024-08-30","Friday",243,1,1]
[null,null,null,null,null,null,null,null,null,null,null,null,null,null,null,null,null,null,null,null,null,null,null,null,null,null,null,null,"2024-08-31","Saturday",244,0,0]
[null,null,null,null,null,null,null,null,null,null,null,null,null,null,null,null,null,null,null,null,null,null,null,null,null,null,null,null,"2024-09-01","Sunday",245,0,0]
[null,null,null,null,null,null,null,null,null,null,null,null,null,null,null,null,null,null,null,null,null,null,null,null,null,null,null,null,"2024-09-02","Monday",246,1,1]
[null,null,null,null,null,null,null,null,null,null,null,null,null,null,null,null,null,null,null,null,null,null,null,null,null,null,null,null,"2024-09-03","Tuesday",247,1,1]
[null,null,null,null,null,null,null,null,null,null,null,null,null,null,null,null,null,null,null,null,null,null,null,null,null,null,null,null,"2024-09-04","Wednesday",248,1,1]
[null,null,null,null,null,null,null,null,null,null,null,null,null,null,null,null,null,null,null,null,null,null,null,null,null,null,null,null,"2024-09-05","Thursday",249,1,1]
[null,null,null,null,null,null,null,null,null,null,null,null,null,null,null,null,null,null,null,null,null,null,null,null,null,null,null,null,"2024-09-06","Friday",250,1,1]
[null,null,null,null,null,null,null,null,null,null,null,null,null,null,null,null,null,null,null,null,null,null,null,null,null,null,null,null,"2024-09-07","Saturday",251,0,0]
[null,null,null,null,null,null,null,null,null,null,null,null,null,null,null,null,null,null,null,null,null,null,null,null,null,null,null,null,"2024-09-08","Sunday",252,0,0]
[null,null,null,null,null,null,null,null,null,null,null,null,null,null,null,null,null,null,null,null,null,null,null,null,null,null,null,null,"2024-09-09","Monday",253,1,1]
[null,null,null,null,null,null,null,null,null,null,null,null,null,null,null,null,null,null,null,null,null,null,null,null,null,null,null,null,"2024-09-10","Tuesday",254,1,1]
[null,null,null,null,null,null,null,null,null,null,null,null,null,null,null,null,null,null,null,null,null,null,null,null,null,null,null,null,"2024-09-11","Wednesday",255,1,1]
[null,null,null,null,null,null,null,null,null,null,null,null,null,null,null,null,null,null,null,null,null,null,null,null,null,null,null,null,"2024-09-12","Thursday",256,1,1]
[null,null,null,null,null,null,null,null,null,null,null,null,null,null,null,null,null,null,null,null,null,null,null,null,null,null,null,null,"2024-09-13","Friday",257,1,1]
[null,null,null,null,null,null,null,null,null,null,null,null,null,null,null,null,null,null,null,null,null,null,null,null,null,null,null,null,"2024-09-14","Saturday",258,0,{"$f":"IF($AC259>=$AI$2,IF($AC259<=$AI$3,AF259,0),0)","v":0}]
[null,null,null,null,null,null,null,null,null,null,null,null,null,null,null,null,null,null,null,null,null,null,null,null,null,null,null,null,"2024-09-15","Sunday",259,0,0]
[null,null,null,null,null,null,null,null,null,null,null,null,null,null,null,null,null,null,null,null,null,null,null,null,null,null,null,null,"2024-09-16","Monday",260,1,1]
[null,null,null,null,null,null,null,null,null,null,null,null,null,null,null,null,null,null,null,null,null,null,null,null,null,null,null,null,"2024-09-17","Tuesday",261,1,1]
[null,null,null,null,null,null,null,null,null,null,null,null,null,null,null,null,null,null,null,null,null,null,null,null,null,null,null,null,"2024-09-18","Wednesday",262,1,1]
[null,null,null,null,null,null,null,null,null,null,null,null,null,null,null,null,null,null,null,null,null,null,null,null,null,null,null,null,"2024-09-19","Thursday",263,1,1]
[null,null,null,null,null,null,null,null,null,null,null,null,null,null,null,null,null,null,null,null,null,null,null,null,null,null,null,null,"2024-09-20","Friday",264,1,1]
[null,null,null,null,null,null,null,null,null,null,null,null,null,null,null,null,null,null,null,null,null,null,null,null,null,null,null,null,"2024-09-21","Saturday",265,0,0]
[null,null,null,null,null,null,null,null,null,null,null,null,null,null,null,null,null,null,null,null,null,null,null,null,null,null,null,null,"2024-09-22","Sunday",266,0,0]
[null,null,null,null,null,null,null,null,null,null,null,null,null,null,null,null,null,null,null,null,null,null,null,null,null,null,null,null,"2024-09-23","Monday",267,1,1]
[null,null,null,null,null,null,null,null,null,null,null,null,null,null,null,null,null,null,null,null,null,null,null,null,null,null,null,null,"2024-09-24","Tuesday",268,1,1]
[null,null,null,null,null,null,null,null,null,null,null,null,null,null,null,null,null,null,null,null,null,null,null,null,null,null,null,null,"2024-09-25","Wednesday",269,1,1]
[null,null,null,null,null,null,null,null,null,null,null,null,null,null,null,null,null,null,null,null,null,null,null,null,null,null,null,null,"2024-09-26","Thursday",270,1,1]
[null,null,null,null,null,null,null,null,null,null,null,null,null,null,null,null,null,null,null,null,null,null,null,null,null,null,null,null,"2024-09-27","Friday",271,1,1]
[null,null,null,null,null,null,null,null,null,null,null,null,null,null,null,null,null,null,null,null,null,null,null,null,null,null,null,null,"2024-09-28","Saturday",272,0,0]
[null,null,null,null,null,null,null,null,null,null,null,null,null,null,null,null,null,null,null,null,null,null,null,null,null,null,null,null,"2024-09-29","Sunday",273,0,0]
[null,null,null,null,null,null,null,null,null,null,null,null,null,null,null,null,null,null,null,null,null,null,null,null,null,null,null,null,"2024-09-30","Monday",274,1,1]
[null,null,null,null,null,null,null,null,null,null,null,null,null,null,null,null,null,null,null,null,null,null,null,null,null,null,null,null,"2024-10-01","Tuesday",275,1,1]
[null,null,null,null,null,null,null,null,null,null,null,null,null,null,null,null,null,null,null,null,null,null,null,null,null,null,null,null,"2024-10-02","Wednesday",276,1,1]
[null,null,null,null,null,null,null,null,null,null,null,null,null,null,null,null,null,null,null,null,null,null,null,null,null,null,null,null,"2024-10-03","Thursday",277,1,1]
[null,null,null,null,null,null,null,null,null,null,null,null,null,null,null,null,null,null,null,null,null,null,null,null,null,null,null,null,"2024-10-04","Friday",278,1,1]
[null,null,null,null,null,null,null,null,null,null,null,null,null,null,null,null,null,null,null,null,null,null,null,null,null,null,null,null,"2024-10-05","Saturday",279,0,0]
[null,null,null,null,null,null,null,null,null,null,null,null,null,null,null,null,null,null,null,null,null,null,null,null,null,null,null,null,"2024-10-06","Sunday",280,0,0]
[null,null,null,null,null,null,null,null,null,null,null,null,null,null,null,null,null,null,null,null,null,null,null,null,null,null,null,null,"2024-10-07","Monday",281,1,1]
[null,null,null,null,null,null,null,null,null,null,null,null,null,null,null,null,null,null,null,null,null,null,null,null,null,null,null,null,"2024-10-08","Tuesday",282,1,1]
[null,null,null,null,null,null,null,null,null,null,null,null,null,null,null,null,null,null,null,null,null,null,null,null,null,null,null,null,"2024-10-09","Wednesday",283,1,1]
[null,null,null,null,null,null,null,null,null,null,null,null,null,null,null,null,null,null,null,null,null,null,null,null,null,null,null,null,"2024-10-10","Thursday",284,1,1]
[null,null,null,null,null,null,null,null,null,null,null,null,null,null,null,null,null,null,null,null,null,null,null,null,null,null,null,null,"2024-10-11","Friday",285,1,1]
[null,null,null,null,null,null,null,null,null,null,null,null,null,null,null,null,null,null,null,null,null,null,null,null,null,null,null,null,"2024-10-12","Saturday",286,0,0]
[null,null,null,null,null,null,null,null,null,null,null,null,null,null,null,null,null,null,null,null,null,null,null,null,null,null,null,null,"2024-10-13","Sunday",287,0,0]
[null,null,null,null,null,null,null,null,null,null,null,null,null,null,null,null,null,null,null,null,null,null,null,null,null,null,null,null,"2024-10-14","Monday",288,1,1]
[null,null,null,null,null,null,null,null,null,null,null,null,null,null,null,null,null,null,null,null,null,null,null,null,null,null,null,null,"2024-10-15","Tuesday",289,1,1]
[null,null,null,null,null,null,null,null,null,null,null,null,null,null,null,null,null,null,null,null,null,null,null,null,null,null,null,null,"2024-10-16","Wednesday",290,1,1]
[null,null,null,null,null,null,null,null,null,null,null,null,null,null,null,null,null,null,null,null,null,null,null,null,null,null,null,null,"2024-10-17","Thursday",291,1,1]
[null,null,null,null,null,null,null,null,null,null,null,null,null,null,null,null,null,null,null,null,null,null,null,null,null,null,null,null,"2024-10-18","Friday",292,1,1]
[null,null,null,null,null,null,null,null,null,null,null,null,null,null,null,null,null,null,null,null,null,null,null,null,null,null,null,null,"2024-10-19","Saturday",293,0,0]
[null,null,null,null,null,null,null,null,null,null,null,null,null,null,null,null,null,null,null,null,null,null,null,null,null,null,null,null,"2024-10-20","Sunday",294,0,0]
[null,null,null,null,null,null,null,null,null,null,null,null,null,null,null,null,null,null,null,null,null,null,null,null,null,null,null,null,"2024-10-21","Monday",295,1,1]
[null,null,null,null,null,null,null,null,null,null,null,null,null,null,null,null,null,null,null,null,null,null,null,null,null,null,null,null,"2024-10-22","Tuesday",296,1,1]
[null,null,null,null,null,null,null,null,null,null,null,null,null,null,null,null,null,null,null,null,null,null,null,null,null,null,null,null,"2024-10-23","Wednesday",297,1,1]
[null,null,null,null,null,null,null,null,null,null,null,null,null,null,null,null,null,null,null,null,null,null,null,null,null,null,null,null,"2024-10-24","Thursday",298,1,1]
[null,null,null,null,null,null,null,null,null,null,null,null,null,null,null,null,null,null,null,null,null,null,null,null,null,null,null,null,"2024-10-25","Friday",299,1,1]
[null,null,null,null,null,null,null,null,null,null,null,null,null,null,null,null,null,null,null,null,null,null,null,null,null,null,null,null,"2024-10-26","Saturday",300,0,0]
[null,null,null,null,null,null,null,null,null,null,null,null,null,null,null,null,null,null,null,null,null,null,null,null,null,null,null,null,"2024-10-27","Sunday",301,0,0]
[null,null,null,null,null,null,null,null,null,null,null,null,null,null,null,null,null,null,null,null,null,null,null,null,null,null,null,null,"2024-10-28","Monday",302,1,1]
[null,null,null,null,null,null,null,null,null,null,null,null,null,null,null,null,null,null,null,null,null,null,null,null,null,null,null,null,"2024-10-29","Tuesday",303,1,1]
[null,null,null,null,null,null,null,null,null,null,null,null,null,null,null,null,null,null,null,null,null,null,null,null,null,null,null,null,"2024-10-30","Wednesday",304,1,1]
[null,null,null,null,null,null,null,null,null,null,null,null,null,null,null,null,null,null,null,null,null,null,null,null,null,null,null,null,"2024-10-31","Thursday",305,1,1]
[null,null,null,null,null,null,null,null,null,null,null,null,null,null,null,null,null,null,null,null,null,null,null,null,null,null,null,null,"2024-11-01","Friday",306,1,1]
[null,null,null,null,null,null,null,null,null,null,null,null,null,null,null,null,null,null,null,null,null,null,null,null,null,null,null,null,"2024-11-02","Saturday",307,0,0]
[null,null,null,null,null,null,null,null,null,null,null,null,null,null,null,null,null,null,null,null,null,null,null,null,null,null,null,null,"2024-11-03","Sunday",308,0,0]
[null,null,null,null,null,null,null,null,null,null,null,null,null,null,null,null,null,null,null,null,null,null,null,null,null,null,null,null,"2024-11-04","Monday",309,1,1]
[null,null,null,null,null,null,null,null,null,null,null,null,null,null,null,null,null,null,null,null,null,null,null,null,null,null,null,null,"2024-11-05","Tuesday",310,1,1]
[null,null,null,null,null,null,null,null,null,null,null,null,null,null,null,null,null,null,null,null,null,null,null,null,null,null,null,null,"2024-11-06","Wednesday",311,1,1]
[null,null,null,null,null,null,null,null,null,null,null,null,null,null,null,null,null,null,null,null,null,null,null,null,null,null,null,null,"2024-11-07","Thursday",312,1,1]
[null,null,null,null,null,null,null,null,null,null,null,null,null,null,null,null,null,null,null,null,null,null,null,null,null,null,null,null,"2024-11-08","Friday",313,1,1]
[null,null,null,null,null,null,null,null,null,null,null,null,null,null,null,null,null,null,null,null,null,null,null,null,null,null,null,null,"2024-11-09","Saturday",314,0,0]
[null,null,null,null,null,null,null,null,null,null,null,null,null,null,null,null,null,null,null,null,null,null,null,null,null,null,null,null,"2024-11-10","Sunday",315,0,0]
[null,null,null,null,null,null,null,null,null,null,null,null,null,null,null,null,null,null,null,null,null,null,null,null,null,null,null,null,"2024-11-11","Monday",316,1,1]
[null,null,null,null,null,null,null,null,null,null,null,null,null,null,null,null,null,null,null,null,null,null,null,null,null,null,null,null,"2024-11-12","Tuesday",317,1,1]
[null,null,null,null,null,null,null,null,null,null,null,null,null,null,null,null,null,null,null,null,null,null,null,null,null,null,null,null,"2024-11-13","Wednesday",318,1,1]
[null,null,null,null,null,null,null,null,null,null,null,null,null,null,null,null,null,null,null,null,null,null,null,null,null,null,null,null,"2024-11-14","Thursday",319,1,1]
[null,null,null,null,null,null,null,null,null,null,null,null,null,null,null,null,null,null,null,null,null,null,null,null,null,null,null,null,"2024-11-15","Friday",320,1,1]
[null,null,null,null,null,null,null,null,null,null,null,null,null,null,null,null,null,null,null,null,null,null,null,null,null,null,null,null,"2024-11-16","Saturday",321,0,0]
[null,null,null,null,null,null,null,null,null,null,null,null,null,null,null,null,null,null,null,null,null,null,null,null,null,null,null,null,"2024-11-17","Sunday",322,0,{"$f":"IF($AC323>=$AI$2,IF($AC323<=$AI$3,AF323,0),0)","v":0}]
[null,null,null,null,null,null,null,null,null,null,null,null,null,null,null,null,null,null,null,null,null,null,null,null,null,null,null,null,"2024-11-18","Monday",323,1,1]
[null,null,null,null,null,null,null,null,null,null,null,null,null,null,null,null,null,null,null,null,null,null,null,null,null,null,null,null,"2024-11-19","Tuesday",324,1,1]
[null,null,null,null,null,null,null,null,null,null,null,null,null,null,null,null,null,null,null,null,null,null,null,null,null,null,null,null,"2024-11-20","Wednesday",325,1,1]
[null,null,null,null,null,null,null,null,null,null,null,null,null,null,null,null,null,null,null,null,null,null,null,null,null,null,null,null,"2024-11-21","Thursday",326,1,1]
[null,null,null,null,null,null,null,null,null,null,null,null,null,null,null,null,null,null,null,null,null,null,null,null,null,null,null,null,"2024-11-22","Friday",327,1,1]
[null,null,null,null,null,null,null,null,null,null,null,null,null,null,null,null,null,null,null,null,null,null,null,null,null,null,null,null,"2024-11-23","Saturday",328,0,0]
[null,null,null,null,null,null,null,null,null,null,null,null,null,null,null,null,null,null,null,null,null,null,null,null,null,null,null,null,"2024-11-24","Sunday",329,0,0]
[null,null,null,null,null,null,null,null,null,null,null,null,null,null,null,null,null,null,null,null,null,null,null,null,null,null,null,null,"2024-11-25","Monday",330,1,1]
[null,null,null,null,null,null,null,null,null,null,null,null,null,null,null,null,null,null,null,null,null,null,null,null,null,null,null,null,"2024-11-26","Tuesday",331,1,1]
[null,null,null,null,null,null,null,null,null,null,null,null,null,null,null,null,null,null,null,null,null,null,null,null,null,null,null,null,"2024-11-27","Wednesday",332,1,1]
[null,null,null,null,null,null,null,null,null,null,null,null,null,null,null,null,null,null,null,null,null,null,null,null,null,null,null,null,"2024-11-28","Thursday",333,1,1]
[null,null,null,null,null,null,null,null,null,null,null,null,null,null,null,null,null,null,null,null,null,null,null,null,null,null,null,null,"2024-11-29","Friday",334,1,1]
[null,null,null,null,null,null,null,null,null,null,null,null,null,null,null,null,null,null,null,null,null,null,null,null,null,null,null,null,"2024-11-30","Saturday",335,0,0]
[null,null,null,null,null,null,null,null,null,null,null,null,null,null,null,null,null,null,null,null,null,null,null,null,null,null,null,null,"2024-12-01","Sunday",336,0,0]
[null,null,null,null,null,null,null,null,null,null,null,null,null,null,null,null,null,null,null,null,null,null,null,null,null,null,null,null,"2024-12-02","Monday",337,1,1]
[null,null,null,null,null,null,null,null,null,null,null,null,null,null,null,null,null,null,null,null,null,null,null,null,null,null,null,null,"2024-12-03","Tuesday",338,1,1]
[null,null,null,null,null,null,null,null,null,null,null,null,null,null,null,null,null,null,null,null,null,null,null,null,null,null,null,null,"2024-12-04","Wednesday",339,1,1]
[null,null,null,null,null,null,null,null,null,null,null,null,null,null,null,null,null,null,null,null,null,null,null,null,null,null,null,null,"2024-12-05","Thursday",340,1,1]
[null,null,null,null,null,null,null,null,null,null,null,null,null,null,null,null,null,null,null,null,null,null,null,null,null,null,null,null,"2024-12-06","Friday",341,1,1]
[null,null,null,null,null,null,null,null,null,null,null,null,null,null,null,null,null,null,null,null,null,null,null,null,null,null,null,null,"2024-12-07","Saturday",342,0,0]
[null,null,null,null,null,null,null,null,null,null,null,null,null,null,null,null,null,null,null,null,null,null,null,null,null,null,null,null,"2024-12-08","Sunday",343,0,0]
[null,null,null,null,null,null,null,null,null,null,null,null,null,null,null,null,null,null,null,null,null,null,null,null,null,null,null,null,"2024-12-09","Monday",344,1,1]
[null,null,null,null,null,null,null,null,null,null,null,null,null,null,null,null,null,null,null,null,null,null,null,null,null,null,null,null,"2024-12-10","Tuesday",345,1,1]
[null,null,null,null,null,null,null,null,null,null,null,null,null,null,null,null,null,null,null,null,null,null,null,null,null,null,null,null,"2024-12-11","Wednesday",346,1,1]
[null,null,null,null,null,null,null,null,null,null,null,null,null,null,null,null,null,null,null,null,null,null,null,null,null,null,null,null,"2024-12-12","Thursday",347,1,1]
[null,null,null,null,null,null,null,null,null,null,null,null,null,null,null,null,null,null,null,null,null,null,null,null,null,null,null,null,"2024-12-13","Friday",348,1,1]
[null,null,null,null,null,null,null,null,null,null,null,null,null,null,null,null,null,null,null,null,null,null,null,null,null,null,null,null,"2024-12-14","Saturday",349,0,0]
[null,null,null,null,null,null,null,null,null,null,null,null,null,null,null,null,null,null,null,null,null,null,null,null,null,null,null,null,"2024-12-15","Sunday",350,0,0]
[null,null,null,null,null,null,null,null,null,null,null,null,null,null,null,null,null,null,null,null,null,null,null,null,null,null,null,null,"2024-12-16","Monday",351,1,1]
[null,null,null,null,null,null,null,null,null,null,null,null,null,null,null,null,null,null,null,null,null,null,null,null,null,null,null,null,"2024-12-17","Tuesday",352,1,1]
[null,null,null,null,null,null,null,null,null,null,null,null,null,null,null,null,null,null,null,null,null,null,null,null,null,null,null,null,"2024-12-18","Wednesday",353,1,1]
[null,null,null,null,null,null,null,null,null,null,null,null,null,null,null,null,null,null,null,null,null,null,null,null,null,null,null,null,"2024-12-19","Thursday",354,1,1]
[null,null,null,null,null,null,null,null,null,null,null,null,null,null,null,null,null,null,null,null,null,null,null,null,null,null,null,null,"2024-12-20","Friday",355,1,1]
[null,null,null,null,null,null,null,null,null,null,null,null,null,null,null,null,null,null,null,null,null,null,null,null,null,null,null,null,"2024-12-21","Saturday",356,0,0]
[null,null,null,null,null,null,null,null,null,null,null,null,null,null,null,null,null,null,null,null,null,null,null,null,null,null,null,null,"2024-12-22","Sunday",357,0,0]
[null,null,null,null,null,null,null,null,null,null,null,null,null,null,null,null,null,null,null,null,null,null,null,null,null,null,null,null,"2024-12-23","Monday",358,1,1]
[null,null,null,null,null,null,null,null,null,null,null,null,null,null,null,null,null,null,null,null,null,null,null,null,null,null,null,null,"2024-12-24","Tuesday",359,1,1]
[null,null,null,null,null,null,null,null,null,null,null,null,null,null,null,null,null,null,null,null,null,null,null,null,null,null,null,null,"2024-12-25","Wednesday",360,1,1]
[null,null,null,null,null,null,null,null,null,null,null,null,null,null,null,null,null,null,null,null,null,null,null,null,null,null,null,null,"2024-12-26","Thursday",361,1,1]
[null,null,null,null,null,null,null,null,null,null,null,null,null,null,null,null,null,null,null,null,null,null,null,null,null,null,null,null,"2024-12-27","Friday",362,1,1]
[null,null,null,null,null,null,null,null,null,null,null,null,null,null,null,null,null,null,null,null,null,null,null,null,null,null,null,null,"2024-12-28","Saturday",363,0,0]
[null,null,null,null,null,null,null,null,null,null,null,null,null,null,null,null,null,null,null,null,null,null,null,null,null,null,null,null,"2024-12-29","Sunday",364,0,0]
[null,null,null,null,null,null,null,null,null,null,null,null,null,null,null,null,null,null,null,null,null,null,null,null,null,null,null,null,"2024-12-30","Monday",365,1,1]
[null,null,null,null,null,null,null,null,null,null,null,null,null,null,null,null,null,null,null,null,null,null,null,null,null,null,null,null,"2024-12-31","Tuesday",366,1,1]
[null,null,null,null,null,null,null,null,null,null,null,null,null,null,null,null,null,null,null,null,null,null,null,null,null,null,null,null,null,null,null,{"$f":"SUM(AF2:AF367)","v":262},{"$f":"SUM(AG2:AG367)","v":262}]
[]
[null,null,null,null,null,null,null,null,null,null,null,null,null,null,null,null,null,null,null,null,null,null,null,null,null,null,null,null,null,null,null,null,{"$f":"AG368/5","v":52.4}]